bitfinex/quotes_ETHUSD_20250725
["timestamp","ask_amount","ask_price","bid_price","bid_amount"]
[1753438348866,0.1344,3720.6,3720.1,1.5337]
[1753438349096,0.5902,3720.6,3720.0,5.0204]
[1753438349266,0.5902,3720.6,3720.3,2.68790842]
[1753438349467,0.1344,3720.6,3720.4,4.886]
[1753438349712,4.8109,3720.5,3720.3,4.885]
[1753438350189,1.8109,3720.5,3720.3,4.885]
[1753438350913,0.1344,3720.6,3720.3,4.885]
[1753438351069,0.5902,3720.6,3720.3,4.885]
[1753438351412,1.9453,3720.6,3720.3,4.885]
[1753438352099,1.9453,3720.6,3720.3,4.881]
[1753438352295,0.4558,3720.5,3720.3,4.881]
[1753438352912,1.4895,3720.6,3720.0,2.82254973]
[1753438352913,1.8109,3720.4,3720.0,2.82254973]
[1753438353144,2.82217083,3720.6,3720.1,4.881]
[1753438353145,0.1344,3720.6,3720.1,4.881]
[1753438353421,0.002,3720.8,3720.4,0.1344]
[1753438353620,0.002,3720.8,3720.7,2.68766629]
[1753438353801,0.002,3720.8,3720.7,4.879]
[1753438354011,0.002,3720.8,3720.7,2.68766629]
[1753438354207,0.002,3720.8,3720.7,7.56666629]
[1753438354496,0.002,3720.8,3720.7,2.68766629]
[1753438354673,0.002,3720.8,3720.7,7.56566629]
[1753438354876,0.002,3720.8,3720.7,2.68766629]
[1753438355180,0.002,3720.8,3720.7,7.56466629]
[1753438355578,0.002,3720.8,3720.7,4.877]
[1753438355804,0.002,3720.8,3720.7,7.56466629]
[1753438356007,0.002,3720.8,3720.7,4.877]
[1753438357901,0.002,3720.8,3720.7,4.874]
[1753438358320,0.002,3720.8,3720.6,0.1344]
[1753438358473,0.002,3720.8,3720.7,8.79236629]
[1753438358898,0.002,3720.8,3720.7,9.08856629]
[1753438359211,0.002,3720.8,3720.7,9.63856629]
[1753438361416,0.002,3720.8,3720.7,9.34236629]
[1753438361722,0.002,3720.8,3720.7,9.63856629]
[1753438361879,0.002,3720.8,3720.7,6.1703781]
[1753438362080,0.002,3720.8,3720.7,11.0373781]
[1753438363086,0.002,3720.8,3720.7,10.7391781]
[1753438363490,0.002,3720.8,3720.7,12.6278781]
[1753438363797,1e-08,3720.8,3720.7,15.6278781]
[1753438363982,1e-08,3720.8,3720.7,22.0808781]
[1753438366510,1e-08,3721.6,3721.5,4.82998853]
[1753438366686,1e-08,3721.7,3721.6,3.23701633]
[1753438366893,1e-08,3721.7,3721.6,6.35881633]
[1753438367292,1e-08,3721.8,3721.7,4.82984413]
[1753438367506,1e-08,3721.8,3721.7,11.21674413]
[1753438367688,1e-08,3721.8,3721.7,12.75496018]
[1753438367889,1e-08,3721.8,3721.7,6.36806018]
[1753438368120,0.45870001,3721.8,3721.7,4.22516018]
[1753438368428,1e-08,3721.8,3721.7,7.67834413]
[1753438368720,1e-08,3721.8,3721.7,8.22834413]
[1753438369288,1e-08,3721.8,3721.7,10.97094413]
[1753438369523,1e-08,3721.8,3721.7,11.26714413]
[1753438371105,1.26,3723.0,3722.9,2.68607805]
[1753438371427,1.7187,3723.3,3723.2,2.68586162]
[1753438371587,1.7187,3723.3,3723.2,7.53686162]
[1753438371790,1.7187,3723.3,3723.2,7.67126162]
[1753438372322,1.7187,3723.3,3723.2,7.27126162]
[1753438372514,1.5616,3723.9,3723.7,2.68550098]
[1753438372722,1.7187,3723.8,3723.7,7.53550098]
[1753438373228,1.7187,3723.8,3723.7,7.66990098]
[1753438373901,1.7187,3723.8,3723.7,7.66690098]
[1753438374601,1.7187,3723.8,3723.7,0.1344]
[1753438374945,3.5159,3723.8,3723.2,0.1344]
[1753438375092,1.26,3723.7,3723.3,4.845]
[1753438375295,3.0,3723.6,3723.3,4.845]
[1753438375527,0.0126605,3723.6,3723.3,4.845]
[1753438375730,1.7187,3723.5,3723.2,2.68583513]
[1753438375936,1.7187,3723.4,3723.3,4.844]
[1753438376519,2.68582463,3723.3,3722.4,6.45]
[1753438376796,1.7187,3723.2,3722.8,0.1344]
[1753438377025,3.0,3723.1,3722.7,0.1344]
[1753438377217,5.82054264,3722.9,3722.4,4.842]
[1753438377525,0.1344,3722.5,3722.4,4.841]
[1753438377942,4.34926713,3722.4,3721.4,2.68709482]
[1753438378099,3.0,3722.0,3721.6,4.841]
[1753438378428,1.7187,3721.9,3721.6,4.841]
[1753438378725,4.6628,3722.4,3722.1,2.68659589]
[1753438378929,1.7187,3722.3,3722.1,2.68659589]
[1753438379128,1.6628,3722.4,3722.2,2.68657521]
[1753438379430,0.4587,3723.0,3722.4,2.68641439]
[1753438379728,3.94623561,3722.7,3722.3,4.838]
[1753438379908,3.3116,3722.6,3722.3,4.9724]
[1753438380112,1.7187,3722.5,3722.3,0.1344]
[1753438380323,1.7187,3722.5,3722.4,4.837]
[1753438380635,1.7273,3722.6,3722.4,4.837]
[1753438380935,1.7273,3722.6,3722.3,4.837]
[1753438381098,4.7187,3722.5,3722.2,4.836]
[1753438381303,2.68644789,3722.4,3722.2,4.836]
[1753438381636,1.7187,3722.4,3722.0,0.1344]
[1753438381852,1.7187,3722.4,3722.1,7.52160747]
[1753438382131,0.4587,3722.3,3722.1,7.52160747]
[1753438382296,2.686176,3722.8,3722.1,7.52160747]
[1753438382297,3.0,3722.8,3722.4,2.686382]
[1753438382498,3.1344,3722.8,3722.4,4.834]
[1753438382694,1.7187,3722.7,3722.2,0.1344]
[1753438382898,3.0,3722.1,3721.3,2.68720589]
[1753438383153,1.7187,3722.0,3721.6,0.1344]
[1753438383357,1.7187,3722.0,3721.7,4.833]
[1753438383657,1.7187,3721.9,3721.6,0.1344]
[1753438383807,1.6594,3721.7,3721.1,2.82172601]
[1753438384011,1.7187,3721.6,3721.2,4.832]
[1753438384249,0.4587,3721.6,3721.4,2.6871577]
[1753438384544,1.525,3721.7,3721.5,2.68708853]
[1753438384909,1.525,3722.1,3721.6,4.831]
[1753438385250,1.525,3722.1,3721.9,2.68676602]
[1753438385546,1.525,3722.1,3721.8,2.68685568]
[1753438385722,1.7187,3722.0,3721.7,4.9644]
[1753438385925,1.7187,3721.9,3721.6,4.9634]
[1753438386124,1.525,3722.1,3721.2,2.68730517]
[1753438386324,1.6629,3722.4,3722.3,2.68651102]
[1753438386529,1.6629,3723.0,3722.9,2.68607805]
[1753438386860,6.4017,3723.0,3722.9,2.82047805]
[1753438387217,6.4017,3723.0,3722.9,0.1344]
[1753438387413,3.0,3722.9,3722.5,2.68631642]
[1753438387621,1.7388,3722.8,3722.5,0.1344]
[1753438388028,1.7388,3722.7,3722.5,2.82072245]
[1753438388225,0.4741,3722.6,3722.5,2.82072245]
[1753438388736,0.4741,3722.6,3722.5,0.1344]
[1753438388914,1.7388,3722.6,3722.5,0.1344]
[1753438391344,1.7388,3722.6,3722.5,2.82076668]
[1753438391740,1.7388,3722.6,3722.5,0.1344]
[1753438392438,1.7388,3722.6,3722.5,2.82076668]
[1753438392619,3.4017,3723.0,3722.7,2.68622047]
[1753438392819,4.7388,3722.9,3722.7,0.1344]
[1753438393234,5.68614961,3722.9,3722.2,2.68651772]
[1753438393439,1.7388,3722.8,3722.5,0.1344]
[1753438393843,5.68609268,3722.9,3722.5,0.1344]
[1753438394160,1.7388,3722.7,3722.5,0.1344]
[1753438394655,1.7388,3722.6,3722.5,0.1344]
[1753438395442,1.7388,3722.6,3722.5,2.82076668]
[1753438395648,1.7388,3722.6,3722.5,0.1344]
[1753438396646,4.7388,3722.6,3722.5,0.1344]
[1753438396874,4.6162,3722.5,3721.9,2.68675116]
[1753438397053,4.6162,3722.5,3722.1,0.1344]
[1753438397235,1.7388,3722.4,3722.1,0.1344]
[1753438397868,1.5883,3722.2,3720.9,2.7731]
[1753438398050,3.0,3722.0,3721.8,0.1344]
[1753438398556,5.68673907,3722.0,3721.8,0.1344]
[1753438398863,1.7388,3721.9,3721.8,0.1344]
[1753438399231,4.7388,3721.9,3721.8,0.1344]
[1753438399571,4.42559975,3721.9,3721.8,0.1344]
[1753438399929,4.7388,3721.9,3721.8,0.1344]
[1753438400568,4.42559975,3721.9,3721.8,0.1344]
[1753438400875,4.7388,3721.9,3721.8,0.1344]
[1753438401230,1.7388,3721.9,3721.8,0.1344]
[1753438402422,6.5448,3722.6,3721.8,0.1344]
[1753438402648,3.0,3722.5,3722.1,0.1344]
[1753438402847,4.7388,3722.5,3722.1,0.1344]
[1753438403172,1.7388,3722.4,3722.1,0.1344]
[1753438403663,3.0,3722.5,3722.1,0.1344]
[1753438403863,1.7388,3722.4,3722.1,0.1344]
[1753438404063,1.7388,3722.4,3722.1,2.82104987]
[1753438404263,4.9404,3722.6,3722.1,0.1344]
[1753438404467,3.0,3722.6,3722.3,2.8208941]
[1753438404677,1.7388,3722.5,3722.3,0.1344]
[1753438405178,1.7388,3722.4,3722.3,0.1344]
[1753438405380,1.7388,3722.4,3722.1,0.1344]
[1753438405714,4.7388,3722.3,3722.1,0.1344]
[1753438405969,4.7388,3722.3,3721.9,0.1344]
[1753438406132,1.7388,3722.2,3721.9,0.1344]
[1753438406335,4.7388,3722.2,3721.9,0.1344]
[1753438406645,1.5521,3722.0,3720.9,1.6514]
[1753438406971,4.7388,3721.9,3721.5,0.1344]
[1753438407336,3.0,3721.9,3721.8,2.68687194]
[1753438407555,3.0,3721.9,3721.8,2.82127194]
[1753438407730,7.9324,3722.4,3721.9,2.68679729]
[1753438408060,1.7388,3722.3,3721.8,0.1344]
[1753438408457,1.7388,3722.2,3721.8,0.1344]
[1753438408662,1.7388,3722.2,3721.8,2.82124414]
[1753438408862,2.0262,3722.1,3721.8,0.1344]
[1753438409065,6.11200014,3722.1,3721.5,0.1344]
[1753438409269,3.0,3721.9,3721.5,0.1344]
[1753438409778,4.7388,3721.8,3721.5,0.1344]
[1753438410137,1.7388,3721.7,3721.5,0.1344]
[1753438410642,1.7388,3721.6,3721.5,0.1344]
[1753438412352,0.4741,3721.6,3721.5,0.1344]
[1753438413172,4.7388,3721.9,3721.5,0.1344]
[1753438413681,1.7388,3721.8,3721.5,0.1344]
[1753438413872,1.5411,3722.5,3721.7,2.68694413]
[1753438414071,1.5411,3722.5,3722.1,2.68663832]
[1753438414275,1.5411,3722.5,3722.2,0.1344]
[1753438414276,1.7388,3722.4,3722.2,0.1344]
[1753438414476,4.7388,3722.4,3721.3,4.788]
[1753438414782,2.68663432,3722.2,3721.8,0.1344]
[1753438415274,3.0,3722.0,3721.8,0.1344]
[1753438415679,1.7388,3721.9,3721.8,0.1344]
[1753438415876,1.7388,3721.9,3721.8,0.38273053]
[1753438416040,3.0,3722.1,3721.8,3.06960247]
[1753438416246,3.0,3722.1,3721.9,0.24833053]
[1753438416474,4.6883,3722.1,3722.0,0.24833053]
[1753438416751,1.6883,3722.1,3722.0,0.24835484]
[1753438416956,3.1344,3722.3,3722.0,0.24835484]
[1753438417173,3.1344,3722.3,3722.1,0.24835484]
[1753438417354,3.1344,3722.3,3722.2,0.24835484]
[1753438417754,5.82091102,3722.3,3722.2,0.24835484]
[1753438417950,7.50921102,3722.3,3722.2,0.24835484]
[1753438418177,7.64957067,3722.3,3722.2,0.24835484]
[1753438418945,4.5934,3721.5,3720.7,0.001]
[1753438419246,3.0,3721.1,3720.7,0.001]
[1753438419649,3.0,3721.6,3721.0,1.6588]
[1753438419883,2.68673173,3722.0,3721.2,2.68725072]
[1753438420178,2.68687497,3721.8,3721.1,1.2826]
[1753438420345,2.68700424,3721.7,3721.0,1.6588]
[1753438420543,3.0,3721.6,3721.1,4.778]
[1753438420743,1.6883,3721.8,3721.2,1.2826]
[1753438420983,3.0,3721.9,3721.3,2.68722803]
[1753438421450,3.0,3721.9,3721.4,2.6871589]
[1753438421651,2.68681821,3721.9,3721.5,1.2826]
[1753438422067,3.0,3721.8,3721.4,4.776]
[1753438422252,3.0,3721.9,3721.4,6.0586]
[1753438422454,3.0,3722.0,3721.5,3.96963759]
[1753438422654,3.0,3722.0,3721.5,1.2826]
[1753438422863,1.82866978,3722.4,3721.5,1.2826]
[1753438423182,2.68658989,3722.2,3721.6,2.68696517]
[1753438423692,3.0,3722.0,3721.5,2.68708706]
[1753438423855,1.6883,3722.2,3721.6,2.68700201]
[1753438424056,4.6883,3722.2,3721.6,2.68700201]
[1753438424280,4.6883,3722.2,3721.7,4.773]
[1753438424586,1.6883,3722.2,3721.7,7.45993466]
[1753438424884,1.6883,3722.2,3721.7,4.773]
[1753438425397,3.0,3722.4,3721.8,1.5535]
[1753438425575,3.0,3722.5,3721.9,4.771]
[1753438425755,3.0,3722.5,3721.9,7.45779046]
[1753438425957,3.0,3722.5,3721.9,4.771]
[1753438425958,2.68638245,3722.5,3721.9,4.771]
[1753438426156,2.68638245,3722.5,3721.9,7.45778849]
[1753438426861,3.0,3722.5,3721.9,7.45778849]
[1753438427191,3.0,3722.5,3722.0,2.68671419]
[1753438427357,3.90982662,3722.7,3722.1,2.68660643]
[1753438427690,3.90982662,3722.7,3721.8,2.8361]
[1753438427691,3.0,3722.5,3722.2,4.768]
[1753438427886,1.6883,3722.4,3722.2,4.768]
[1753438428697,1.6883,3722.4,3722.0,2.68672376]
[1753438428899,1.6883,3722.4,3715.8,11.2600097]
[1753438428900,1.6883,3722.3,3720.7,0.001]
[1753438429101,0.1344,3721.2,3720.7,0.001]
[1753438429305,0.1344,3721.3,3720.8,0.1344]
[1753438429610,3.0,3721.1,3720.8,0.1344]
[1753438429901,1.6883,3721.2,3720.8,4.8984]
[1753438430285,3.0,3721.1,3720.8,4.8984]
[1753438430601,3.0,3721.1,3720.8,0.1344]
[1753438430807,1.6883,3721.0,3720.8,4.8974]
[1753438431005,1.6883,3720.9,3720.7,0.001]
[1753438431304,3.0,3720.8,3720.7,0.001]
[1753438432111,3.0,3721.3,3720.7,0.001]
[1753438432402,3.1344,3721.3,3720.7,2.68866464]
[1753438432605,5.82163378,3721.3,3720.8,0.1344]
[1753438432909,3.0,3720.9,3720.7,0.001]
[1753438433115,1.6883,3721.2,3720.7,0.001]
[1753438433409,5.68737738,3721.1,3720.7,0.001]
[1753438433584,1.6883,3720.9,3720.7,0.001]
[1753438434099,0.4667,3720.9,3720.7,0.001]
[1753438434296,1.2216,3720.8,3720.7,0.001]
[1753438434520,1.6883,3720.8,3720.7,0.001]
[1753438435085,1.6883,3721.1,3720.7,0.001]
[1753438435807,1.6883,3721.0,3720.7,0.001]
[1753438436575,4.8227,3721.3,3720.7,0.001]
[1753438436771,1.6883,3721.1,3720.7,0.001]
[1753438437282,1.5984,3721.4,3721.0,0.1344]
[1753438437602,1.6883,3721.3,3721.0,0.1344]
[1753438437992,3.0,3721.1,3720.8,4.754]
[1753438438197,3.0,3721.1,3720.8,4.8884]
[1753438438393,1.6883,3721.0,3720.8,4.8884]
[1753438438896,1.6883,3720.9,3720.8,4.8884]
[1753438439207,1.6883,3720.9,3720.8,0.1344]
[1753438439589,1.6883,3721.2,3720.8,2.82193814]
[1753438439773,1.6883,3721.1,3720.8,2.82193814]
[1753438439976,1.6883,3721.1,3720.8,0.1344]
[1753438440178,0.1344,3721.3,3720.8,0.1344]
[1753438440373,0.11967998,3721.5,3720.9,1.2826]
[1753438440374,0.4667,3721.5,3720.9,1.2826]
[1753438440624,4.2216,3721.7,3721.3,2.82162641]
[1753438440992,4.6883,3721.7,3721.3,0.1344]
[1753438441198,4.6883,3721.7,3721.3,2.82156527]
[1753438441392,4.6883,3721.7,3721.4,2.93532651]
[1753438441695,4.6883,3721.7,3721.5,0.24820742]
[1753438442021,4.6883,3721.7,3721.6,0.24820742]
[1753438442022,5.68694413,3721.7,3721.6,0.24820742]
[1753438442481,7.50964413,3721.7,3721.6,0.24820742]
[1753438443581,4.8227,3721.7,3721.6,0.24820742]
[1753438443994,7.37524413,3721.7,3721.6,0.24820742]
[1753438444703,12.11924413,3721.7,3721.6,0.24820742]
[1753438445190,9.4323,3721.7,3721.6,0.24820742]
[1753438445592,12.11924413,3721.7,3721.6,0.24820742]
[1753438445795,7.37524413,3721.7,3721.6,0.24820742]
[1753438445999,0.1344,3721.8,3721.6,0.24820742]
[1753438446197,3.0,3721.8,3721.7,0.24820742]
[1753438446919,7.35707194,3721.8,3721.7,0.24820742]
[1753438447218,7.8754,3721.8,3721.7,0.24820742]
[1753438447421,7.741,3721.8,3721.7,0.24820742]
[1753438447718,7.35707194,3721.8,3721.7,0.24820742]
[1753438448027,2.68724574,3721.3,3720.8,0.1354]
[1753438448322,3.0,3721.1,3720.9,0.24836595]
[1753438448623,3.0,3721.1,3721.0,0.24836595]
[1753438448816,2.68731338,3721.2,3721.0,0.24836595]
[1753438448817,3.0,3721.2,3721.0,0.24836595]
[1753438449121,0.1344,3721.4,3721.1,0.24836595]
[1753438449301,3.1344,3721.5,3721.2,0.24836595]
[1753438449512,3.1344,3721.5,3721.3,0.24836595]
[1753438449700,0.1344,3721.7,3721.4,0.24836595]
[1753438450025,0.14037656,3721.8,3721.5,0.24836595]
[1753438450200,3.14037656,3721.8,3721.6,0.24836595]
[1753438450400,4.81057656,3721.8,3721.7,0.24836595]
[1753438450820,0.14037656,3721.8,3721.7,0.24836595]
[1753438451128,0.002,3722.2,3721.7,0.24836595]
[1753438451129,4.738,3722.2,3721.7,1.62776595]
[1753438451309,0.002,3722.2,3721.8,2.93518811]
[1753438451509,0.002,3722.2,3721.8,0.24836595]
[1753438451691,0.002,3722.2,3721.9,0.24836595]
[1753438451891,3.002,3722.2,3722.0,0.24836595]
[1753438452223,7.35879273,3722.2,3722.1,0.24836595]
[1753438452523,0.002,3722.2,3722.1,4.47792133]
[1753438452722,0.002,3722.2,3722.1,5.85732133]
[1753438453021,0.002,3722.2,3722.1,1.92566595]
[1753438453232,0.002,3722.2,3722.1,0.38276595]
[1753438453735,1.6722,3722.2,3722.1,0.24836595]
[1753438454048,0.002,3722.2,3722.1,0.24836595]
[1753438454894,0.002,3722.2,3722.1,2.93502133]
[1753438455293,0.002,3722.2,3722.1,7.79146595]
[1753438455597,0.002,3722.2,3722.1,10.47812133]
[1753438457195,0.002,3722.2,3722.1,10.77432133]
[1753438457895,0.002,3722.2,3722.1,12.12043254]
[1753438458739,0.002,3722.7,3722.6,4.34379452]
[1753438458940,0.002,3722.7,3722.6,4.59216047]
[1753438459110,0.002,3722.7,3722.6,10.55916047]
[1753438459304,0.002,3722.7,3722.6,10.85536047]
[1753438459508,0.002,3722.7,3722.6,12.20953481]
[1753438459822,0.002,3722.7,3722.6,12.75953481]
[1753438460540,0.002,3722.7,3722.6,10.66633481]
[1753438460727,0.002,3722.7,3722.6,11.91133481]
[1753438460928,0.002,3722.7,3722.6,12.20753481]
[1753438461110,0.002,3722.7,3722.6,5.94633481]
[1753438461316,0.002,3722.7,3722.6,9.31016047]
[1753438461645,0.002,3722.7,3722.6,4.59216047]
[1753438461814,0.002,3722.7,3722.6,9.31016047]
[1753438463045,0.002,3722.7,3722.6,9.30916047]
[1753438464134,0.002,3722.7,3722.6,4.59216047]
[1753438464334,0.002,3722.7,3722.6,9.30716047]
[1753438464648,1.6722,3722.7,3722.6,0.24836595]
[1753438464952,1.6722,3722.7,3722.6,4.96136595]
[1753438465444,1.6722,3722.7,3722.6,0.38276595]
[1753438465611,1.6722,3722.7,3722.6,5.09476595]
[1753438465811,4.6722,3722.7,3722.6,0.38276595]
[1753438466012,4.6722,3722.7,3722.6,5.09376595]
[1753438466235,4.6722,3722.7,3722.6,0.24836595]
[1753438467920,7.35842236,3722.7,3722.6,0.24836595]
[1753438468617,4.6722,3722.7,3722.6,0.24836595]
[1753438468848,7.35842236,3722.7,3722.6,0.24836595]
[1753438469214,4.6722,3722.7,3722.6,0.24836595]
[1753438469419,7.35842236,3722.7,3722.6,0.24836595]
[1753438469818,3.0,3722.2,3721.7,7.39187823]
[1753438470053,1.6702,3722.1,3721.8,0.24745001]
[1753438470376,1.6702,3722.1,3720.9,2.98369606]
[1753438470377,7.20382756,3722.0,3721.9,0.24745001]
[1753438470648,8.87402756,3722.0,3721.9,0.24745001]
[1753438476677,3.0,3721.5,3720.9,2.68747551]
[1753438476856,5.68710976,3721.5,3721.0,0.248187]
[1753438477069,5.68710976,3721.5,3721.1,0.248187]
[1753438477367,1.6329,3721.4,3721.2,0.248187]
[1753438477568,1.6329,3721.4,3721.3,0.248187]
[1753438477730,3.14456074,3721.4,3721.3,0.248187]
[1753438477930,4.6329,3721.4,3721.3,0.248187]
[1753438478133,7.32006074,3721.4,3721.3,0.248187]
[1753438478388,4.6329,3721.4,3721.3,0.248187]
[1753438478538,7.32006074,3721.4,3721.3,0.248187]
[1753438478738,4.6329,3721.4,3721.3,0.248187]
[1753438480172,1.5367,3722.5,3721.4,1.641]
[1753438480340,0.1344,3721.9,3721.8,2.68687194]
[1753438480544,0.1344,3722.1,3722.0,2.68672756]
[1753438480768,4.691,3722.4,3722.0,1.45188552]
[1753438480980,2.7122,3722.5,3722.1,0.24839048]
[1753438480981,1.5367,3722.5,3722.1,0.24839048]
[1753438481183,4.9941,3722.5,3722.0,2.68668063]
[1753438481386,4.9941,3722.5,3722.1,2.93506583]
[1753438481387,4.6329,3722.4,3722.1,2.93506583]
[1753438481700,4.5367,3722.5,3722.1,2.68665184]
[1753438481885,6.1696,3722.5,3721.9,1.3378]
[1753438482202,4.691,3722.6,3722.1,1.5053]
[1753438482402,3.1364,3722.7,3722.3,2.68651102]
[1753438482591,0.1364,3722.7,3722.3,2.68651102]
[1753438483053,0.002,3722.7,3722.3,2.68646387]
[1753438483258,0.002,3722.7,3722.3,2.68651102]
[1753438483782,0.002,3722.7,3722.3,2.68649528]
[1753438483783,0.4594,3722.7,3722.3,2.68649528]
[1753438483983,1.6329,3722.6,3722.4,2.68643838]
[1753438484197,0.002,3722.7,3722.2,0.1344]
[1753438484367,0.002,3722.7,3722.5,2.68636356]
[1753438484614,0.002,3722.7,3722.2,1.3378]
[1753438484789,0.002,3722.7,3722.2,2.82095623]
[1753438484990,0.002,3722.7,3722.3,1.2034]
[1753438485194,0.002,3722.7,3722.5,2.68632296]
[1753438485554,0.002,3722.7,3722.6,2.68629452]
[1753438485753,0.002,3722.7,3722.2,0.1344]
[1753438485754,0.4594,3722.7,3722.2,0.1344]
[1753438485993,1.6349,3722.7,3722.3,2.68651102]
[1753438486200,1.6329,3722.6,3722.3,2.68651102]
[1753438486498,1.6329,3722.5,3722.3,2.68646349]
[1753438486858,1.6329,3722.5,3722.2,0.1344]
[1753438486859,1.6329,3722.5,3722.2,2.82095655]
[1753438487291,1.6329,3722.5,3722.3,2.68650779]
[1753438487491,0.002,3722.7,3722.2,0.1344]
[1753438487785,0.002,3722.7,3722.6,2.68629452]
[1753438487954,0.002,3722.7,3722.6,4.13790667]
[1753438488495,0.002,3722.7,3722.6,4.43410667]
[1753438489391,0.002,3722.7,3722.6,4.43410209]
[1753438490188,0.002,3722.7,3722.6,4.18589452]
[1753438490391,0.002,3722.7,3722.6,5.76763625]
[1753438490596,0.002,3722.7,3722.6,7.29943625]
[1753438490757,0.002,3722.7,3722.6,7.00323625]
[1753438490960,0.002,3722.7,3722.6,8.89309452]
[1753438491159,0.002,3722.7,3722.6,2.68629452]
[1753438491475,0.002,3722.7,3722.6,3.88969452]
[1753438492076,0.002,3722.7,3722.6,2.68629452]
[1753438492458,0.002,3722.7,3722.6,3.88969452]
[1753438492670,0.002,3722.7,3722.6,5.16798177]
[1753438492884,0.002,3722.7,3722.6,8.56169452]
[1753438493097,0.002,3722.7,3722.6,8.81011137]
[1753438493691,0.002,3722.7,3722.6,10.42201137]
[1753438494305,1e-08,3722.7,3722.6,10.97201137]
[1753438494508,1e-08,3722.7,3722.6,12.3378503]
[1753438495905,1e-08,3722.7,3722.6,12.0416503]
[1753438496257,1e-08,3722.7,3722.6,12.0366503]
[1753438496776,1e-08,3722.7,3722.6,7.3696503]
[1753438496955,1e-08,3722.7,3722.6,12.0356503]
[1753438497591,1e-08,3722.7,3722.6,12.1700503]
[1753438500062,1e-08,3722.7,3722.6,10.4116503]
[1753438500269,1e-08,3722.7,3722.6,9.0959503]
[1753438500783,1e-08,3722.7,3722.6,9.0949503]
[1753438501513,1e-08,3722.7,3722.6,10.2983503]
[1753438502069,1e-08,3722.7,3722.6,11.8666503]
[1753438503532,1e-08,3722.7,3722.6,12.4162918]
[1753438504416,1e-08,3722.7,3722.6,7.4600918]
[1753438504615,1e-08,3722.7,3722.6,10.9106918]
[1753438504821,1e-08,3722.7,3722.6,7.4600918]
[1753438505017,1e-08,3722.7,3722.6,5.7066918]
[1753438505209,1e-08,3722.7,3722.6,10.3606918]
[1753438505603,1e-08,3722.7,3722.6,5.7066918]
[1753438506000,1.64890001,3722.7,3722.6,7.72075287]
[1753438506204,0.47340001,3722.7,3722.6,7.72075287]
[1753438506397,0.47340001,3722.7,3722.6,3.06859526]
[1753438506398,1.62770001,3722.7,3722.6,3.06859526]
[1753438506932,1.62770001,3722.7,3722.6,0.38230074]
[1753438507233,4.62770001,3722.7,3722.6,5.03330074]
[1753438507542,4.62770001,3722.7,3722.6,0.24790074]
[1753438507740,7.31392237,3722.7,3722.6,0.24790074]
[1753438508032,8.61002237,3722.7,3722.6,0.24790074]
[1753438508730,7.0478832,3722.2,3722.1,1e-08]
[1753438509030,11.6958832,3722.2,3722.1,1e-08]
[1753438509240,13.3235832,3722.2,3722.1,1e-08]
[1753438509812,4.04452183,3720.9,3720.6,0.001]
[1753438510013,1.357,3720.9,3720.6,0.001]
[1753438510213,7.04452183,3720.9,3720.6,0.001]
[1753438510416,8.67222183,3720.9,3720.6,0.001]
[1753438511020,13.19281864,3720.4,3720.3,0.001]
[1753438511342,2.68848842,3719.6,3719.3,0.001]
[1753438511529,7.04560568,3719.4,3719.3,0.001]
[1753438511925,7.04560568,3719.4,3719.2,0.001]
[1753438511926,2.68867797,3719.3,3719.2,0.001]
[1753438512144,7.31637797,3719.3,3719.2,0.001]
[1753438513334,1.6277,3719.3,3719.2,0.001]
[1753438513735,7.31637797,3719.3,3719.2,0.001]
[1753438513935,4.6277,3719.3,3719.2,0.001]
[1753438515541,3.0,3719.3,3719.2,2.68975026]
[1753438516042,4.6277,3719.3,3719.2,0.001]
[1753438519438,3.0,3719.3,3719.2,0.001]
[1753438520246,4.6277,3719.3,3719.2,0.001]
[1753438520653,3.0,3719.3,3719.2,0.001]
[1753438520834,9.2647,3719.3,3719.2,0.001]
[1753438521246,11.95337797,3719.3,3719.2,0.001]
[1753438521540,9.2647,3719.3,3719.2,0.001]
[1753438521742,11.95137797,3719.3,3719.2,0.001]
[1753438522457,13.22537797,3719.3,3719.2,0.001]
[1753438523350,8.59037797,3719.3,3719.2,0.001]
[1753438523557,13.22437797,3719.3,3719.2,0.001]
[1753438525431,13.77437797,3719.3,3719.2,0.001]
[1753438526645,3.55,3719.2,3717.8,0.1344]
[1753438526964,2.82396703,3718.1,3717.5,0.1344]
[1753438527122,0.1344,3717.9,3717.6,2.68990439]
[1753438527323,3.1344,3717.9,3717.7,2.69082221]
[1753438527569,3.1344,3717.9,3717.7,0.001]
[1753438528235,3.1344,3718.2,3718.0,2.68959893]
[1753438528555,3.0,3718.2,3718.1,3.88674573]
[1753438528768,3.0,3718.2,3718.0,2.68960249]
[1753438529058,3.0,3718.2,3718.1,2.68954573]
[1753438529275,3.0,3718.2,3718.0,0.1344]
[1753438529563,1.7621,3718.1,3717.7,0.001]
[1753438530059,0.1344,3718.1,3717.7,0.001]
[1753438530266,4.01536276,3717.8,3717.7,0.001]
[1753438530557,4.3256,3717.8,3717.7,0.001]
[1753438530760,3.0,3717.8,3717.7,0.001]
[1753438531462,7.624,3717.8,3717.7,3.88803511]
[1753438531646,3.0,3717.8,3717.7,3.88803511]
[1753438532935,3.0,3717.8,3717.7,0.001]
[1753438533661,3.0,3717.8,3717.7,2.69083511]
[1753438534225,3.0,3717.8,3717.7,0.001]
[1753438534463,4.6277,3717.8,3717.7,0.001]
[1753438534630,7.31746276,3717.8,3717.7,0.001]
[1753438534829,3.4734,3717.8,3717.7,0.001]
[1753438535048,9.2487,3717.8,3717.7,0.001]
[1753438535331,11.93846276,3717.8,3717.7,0.001]